Cogmind - Beta 9.6 @@@ ROGUE MODE // 2020.07.22 @ 14:10:26 // Winter2019/RPGLIKE Player: Hermelin Result: Destroyed by EX-DEC with AWS/EX-DEC Performance ------------- Evolutions (1) 500 Regions Visited (5) 1000 Robots Destroyed (83) 415 Value Destroyed (1561) 1561 Prototype IDs (31) 620 Alien Tech Used (0) 0 Bonus (-322) -322 TOTAL SCORE: 3774 Bonus ------- High Alert Combat Kills 94 Follower Combat Kills 46 Aligned with FarCom 300 Friendly Fire -762 Cogmind --------- Core Integrity 0/750 Matter 26/450 Energy 40/340 System Corruption 7% Temperature Cool (0) Movement Flying (26) Location -9/Exiles Parts ------- > --- POWER (2) -------- Cooled Ion Engine Light Nuclear Core > --- PROPULSION (4) --- Improved Flight Unit Improved Flight Unit Improved Flight Unit Improved Flight Unit > --- UTILITY (5) ------ Compact Matter Pod Improved Signal Interpreter Advanced Targeting Computer Hardened Medium Armor Plating Shield Generator > --- WEAPON (3) ------- Heavy Assault Rifle Heavy Assault Rifle Makeshift Shrapnel Gun > --- INVENTORY (3) ---- Experimental Sensor Array Hardened Medium Armor Plating Mini Grenade Launcher Peak State ------------ > --- POWER ------------ Cooled Ion Engine Light Nuclear Core > --- PROPULSION ------- Improved Flight Unit Improved Flight Unit Improved Flight Unit Improved Flight Unit > --- UTILITY ---------- Experimental Sensor Array Improved Signal Interpreter Advanced Targeting Computer Hardened Medium Armor Plating Shield Generator > --- WEAPON ----------- Heavy Assault Rifle Heavy Assault Rifle Makeshift Shrapnel Gun > --- INVENTORY -------- Nuclear Core Fission Core Compact Matter Pod [Rating: 43] Favorites ----------- Power Light Nuclear Core Engine Cooled Ion Engine Power Core Light Nuclear Core Propulsion Improved Flight Unit Treads Light Treads Wheel Wheel Hover Unit Hover Unit Flight Unit Improved Flight Unit Utility Experimental Sensor Array Device Experimental Sensor Array Storage Compact Matter Pod Processor Improved Signal Interpreter Hackware Hacking Suite Protection Hardened Medium Armor Plating Weapon Heavy Assault Rifle Ballistic Gun Heavy Assault Rifle Launcher Mini Grenade Launcher Build | -11 -10 -10 -9 -9 -9 ------- Run | Scr Mat Min Mat Min Exi Slots Evolved 10 | 3 . 1 6 . . Power 1 | . . . 1 . . Propulsion 3 | 1 . . 2 . . Utility 4 | 1 . 1 2 . . Weapon 2 | 1 . . 1 . . Parts Attached 43 | 5 6 3 26 . 3 Power 5 | 1 1 . 3 . . Engine 2 | 1 . . 1 . . Core 3 | . 1 . 2 . . Reactor . | . . . . . . Propulsion 16 | 2 2 . 12 . . Treads 1 | 1 . . . . . Leg . | . . . . . . Wheel 1 | 1 . . . . . Hover 7 | . 2 . 5 . . Flight 7 | . . . 7 . . Utility 14 | . 3 2 8 . 1 Device 4 | . 1 2 1 . . Storage 1 | . . . . . 1 Processor 3 | . 1 . 2 . . Hackware 1 | . 1 . . . . Protection 5 | . . . 5 . . Artifact . | . . . . . . Weapon 8 | 2 . 1 3 . 2 Energy Gun . | . . . . . . Energy Cannon . | . . . . . . Ballistic Gun 7 | 2 . 1 3 . 1 Ballistic Cannon . | . . . . . . Launcher 1 | . . . . . 1 Special Weapon . | . . . . . . Impact Weapon . | . . . . . . Slashing Weapon . | . . . . . . Piercing Weapon . | . . . . . . Special Melee Weapon . | . . . . . . Unidentified Prototypes 1 | . . 1 . . . Parts Lost 1 | . . . 1 . . Power . | . . . . . . Propulsion 1 | . . . 1 . . Utility . | . . . . . . Weapon . | . . . . . . Highest Loss Streak 1 | . . . 1 . . Average Slot Usage (%) 98 | . 97 100 97 100 100 Engine 4 | . 6 . 5 7 7 Core 8 | . 7 12 8 7 7 Hover 14 | . 24 25 10 . . Flight 11 | . . . 15 28 28 Device 9 | . 5 12 9 14 9 Processor 12 | . 7 12 13 14 14 Hackware 5 | . 12 12 1 . . Protection 3 | . . . 6 7 7 Ballistic Gun 24 | . 28 25 23 21 20 Naked Turns . | . . . . . . Heaviest Build 32 | 6 9 10 32 32 32 Greatest Support 36 | 15 17 17 36 34 34 Greatest Overweight (x) 2 | . . . 2 . . Average Overweight (x) . | . . . . . . Largest Inventory Capacity 3 | 2 2 2 3 3 3 Average Capacity 2 | 1 2 2 2 3 3 Most Carried 3 | 2 2 2 3 3 3 Average Carried 2 | . 1 1 1 2 2 Final Capacity 3 | 2 2 2 3 3 3 Final Carried 3 | 2 2 2 3 3 3 Class Distribution -------------------- 37% | Sprinter 33% | Scavenger-Mutant 13% | Scavenger-Gunner 8% | Hacker-Mutant 3% | Mutant 3% | Scavenger-Skirmisher Dominant Class ---------------- Scavenger-Mutant | -10/Materials Scavenger-Mutant | -10/Mines Sprinter | -9/Materials Sprinter | -9/Mines Sprinter | -9/Exiles Resources | -11 -10 -10 -9 -9 -9 ----------- Run | Scr Mat Min Mat Min Exi Matter Collected 1827 | 250 300 106 1022 121 28 Remotely . | . . . . . . Salvage Created 1989 | . 706 74 1071 118 20 Parts 162 | . 40 12 97 13 . Haulers Intercepted 7 | . 1 . 6 . . Recyclers Shooed 1 | . 1 . . . . Parts Field Recycled . | . . . . . . Retrieved Matter . | . . . . . . Parts Self-Destructed . | . . . . . . Prevented . | . . . . . . Kills | -11 -10 -10 -9 -9 -9 ------- Run | Scr Mat Min Mat Min Exi Combat Hostiles Destroyed 59 | . 11 7 32 6 3 Guns 57 | . 11 7 31 6 2 AOE 2 | . . . 1 . 1 Classes Destroyed 11 | . 6 1 2 1 1 Builder 2 | . . . 2 . . Hauler 7 | . 1 . 6 . . Recycler 2 | . 2 . . . . Operator 1 | . 1 . . . . Watcher 7 | . 2 . 5 . . Swarmer 29 | . 3 6 18 2 . Grunt 17 | . 8 . 6 3 . Brawler 1 | . . . . 1 . Sentry 8 | . . . 8 . . Demolisher 1 | . . 1 . . . Assembled 7 | . . . . . 7 Best Kill Streak 6 | . 6 3 6 2 2 Combat Bots Only 4 | . 3 3 4 2 2 Max Kills in Single Turn 5 | . 1 1 2 1 5 Gunslinging . | . . . . . . Exploded 1 | . . . 1 . 1 Melee . | . . . . . . Uniques/NPCs Destroyed 1 | . . . . . 1 8R-AWN (-9/Exiles) Combat | -11 -10 -10 -9 -9 -9 -------- Run | Scr Mat Min Mat Min Exi Damage Taken 2677 | . 461 201 859 79 1077 Core 1872 | . 369 161 532 58 752 Absorbed by Shields 426 | . . . 73 33 320 Redirected to Core 1465 | . 300 121 423 46 575 Core Remaining (%) 77 | 100 . 55 . . . Volleys Fired 193 | . 60 13 70 11 39 Largest 3 | . 2 2 3 3 3 Hottest 70 | . 40 44 70 70 70 Shots Fired 500 | . 120 26 209 33 112 Gun 498 | . 120 26 209 33 110 Cannon . | . . . . . . Launcher 2 | . . . . . 2 Special . | . . . . . . Kinetic 498 | . 120 26 209 33 110 Thermal . | . . . . . . Explosive 2 | . . . . . 2 Electromagnetic . | . . . . . . Robot Hit Streak 21 | . 8 6 21 8 20 Robot Miss Streak 4 | . 4 2 4 2 3 Penetration Max . | . . . . . . Secondary Targets 4 | . 2 . 1 1 . Max Gunslinging Chain 1 | . 1 . 1 1 . Shots Hit Robots 334 | . 75 15 127 22 95 Core Hits 140 | . 32 9 60 11 28 Critical Hits 2 | . 1 . . . 1 Critical Kills . | . . . . . . Critical Parts Destroyed 2 | . 1 . . . 1 Melee Attacks . | . . . . . . Impact . | . . . . . . Slashing . | . . . . . . Piercing . | . . . . . . Sneak Attacks . | . . . . . . Combat Hostiles . | . . . . . . Follow-up Attacks . | . . . . . . Damage Inflicted 5182 | . 822 151 2016 319 1874 Guns 4747 | . 822 151 1902 319 1553 Cannons . | . . . . . . Explosions 435 | . . . 114 . 321 Melee . | . . . . . . Ramming . | . . . . . . Kinetic 4747 | . 822 151 1902 319 1553 Thermal 114 | . . . 114 . . Explosive 321 | . . . . . 321 Electromagnetic . | . . . . . . Impact . | . . . . . . Slashing . | . . . . . . Piercing . | . . . . . . Highest Corruption 6 | . . . . . 6 Average Corruption 1 | . . . . . 1 Corruption Purged . | . . . . . . Overload Shots . | . . . . . . Overflow Damage 3 | . . . . . 3 Projectiles . | . . . . . . Explosions 3 | . . . . . 3 Melee . | . . . . . . Knockbacks . | . . . . . . Impact . | . . . . . . Kinetic . | . . . . . . Secondary . | . . . . . . Self-Inflicted Damage 171 | . . . 171 . . Shots 2 | . . . 2 . . Rammed . | . . . . . . Targets Rammed . | . . . . . . Kicked . | . . . . . . Crushed . | . . . . . . Highest Temperature 114 | . 1 . 78 73 114 Average Temperature 29 | . 1 . 23 29 54 Received Heat Transfer 384 | . 231 . 123 30 . Siege Activations . | . . . . . . Robots Corrupted . | . . . . . . Combat Hostiles . | . . . . . . Parts Fried . | . . . . . . Impact Corruptions . | . . . . . . Robots Melted . | . . . . . . Combat Hostiles . | . . . . . . Parts Melted . | . . . . . . Heat Transferred 50 | . . . 50 . . Parts Sabotaged . | . . . . . . Parts Stolen . | . . . . . . Parts Stripped . | . . . . . . Power Chain Reactions . | . . . . . . Missiles Intercepted . | . . . . . . Alert | -11 -10 -10 -9 -9 -9 ------- Run | Scr Mat Min Mat Min Exi Peak Influence 785 | . 394 170 785 389 . Average Influence 266 | . 221 111 386 284 . Maximum Alert Level 3 | . 1 . 3 1 . Low Security (%) 44 | 100 54 100 12 20 . Level 1 38 | . 45 . 47 79 . Level 2 13 | . . . 31 . . Level 3 3 | . . . 8 . . Level 4 . | . . . . . . Level 5 . | . . . . . . High Security . | . . . . . . Max Security . | . . . . . . Squads Dispatched 2 | . 1 . 1 . . Investigation 1 | . . . 1 . . Extermination . | . . . . . . Reinforcement 1 | . 1 . . . . Assault . | . . . . . . Garrison . | . . . . . . Intercept . | . . . . . . Construction Impeded . | . . . . . . Haulers Reinforced . | . . . . . . Stealth | -11 -10 -10 -9 -9 -9 --------- Run | Scr Mat Min Mat Min Exi Distress Signals 5 | . 3 . 2 . . Communications Jammed . | . . . . . . Distress Signals . | . . . . . . Times Spotted 94 | . 19 11 46 8 10 Peak Tracking Total 9 | . 4 3 5 4 9 Tactical Retreats 5 | . 2 . 2 . 1 Traps | -11 -10 -10 -9 -9 -9 ------- Run | Scr Mat Min Mat Min Exi Traps Triggered 1 | . . . 1 . . Indirectly . | . . . . . . Trap Hack Attempts . | . . . . . . Triggered . | . . . . . . Disarmed . | . . . . . . Reprogrammed . | . . . . . . Reused . | . . . . . . Traps Extracted . | . . . . . . Installed . | . . . . . . Triggered . | . . . . . . Machines | -11 -10 -10 -9 -9 -9 ---------- Run | Scr Mat Min Mat Min Exi Machines Disabled 10 | . 1 . 3 . 6 Max in Single Turn 3 | . 1 . 3 . 2 Machines Sabotaged . | . . . . . . Garrisons Compromised . | . . . . . . Overloaded Fab Kills . | . . . . . . Fab Network Shutdowns . | . . . . . . Hacking | -11 -10 -10 -9 -9 -9 --------- Run | Scr Mat Min Mat Min Exi Machines Accessed 18 | . 4 . 13 . 1 Terminals 14 | . 3 . 11 . . Fabricators . | . . . . . . Repair Stations 1 | . . . 1 . . Recycling Units 1 | . 1 . . . . Scanalyzers 1 | . . . 1 . . Garrison Access . | . . . . . . Total Hacks 87 | . 18 . 68 . 1 Successful 51 | . 8 . 42 . 1 Failed 35 | . 10 . 25 . . Catastrophic 1 | . . . 1 . . Database Lockouts 4 | . . . 4 . . Manual 62 | . 14 . 47 . 1 Terminals 78 | . 16 . 62 . . Fabricators . | . . . . . . Repair Stations 2 | . . . 2 . . Recycling Units 2 | . 2 . . . . Scanalyzers 4 | . . . 4 . . Garrison Access . | . . . . . . Terminal Hacks 29 | . 5 . 23 . 1 Record 3 | . . . 3 . . Robot Analysis 7 | . 3 . 4 . . Prototype ID Bank 4 | . 2 . 2 . . Branch Access Points 2 | . . . 2 . . Terminal Index 2 | . . . 2 . . Alert Level 1 | . . . 1 . . Unreport Threat 3 | . . . 3 . . Locate Traps 2 | . . . 2 . . Hauler Manifests 1 | . . . 1 . . Zone Layout 3 | . . . 3 . . EX-Prototype ID Bank 1 | . . . . . 1 Fabricator Hacks . | . . . . . . Repair Station Hacks 2 | . . . 2 . . Scan Component 1 | . . . 1 . . Repair 1 | . . . 1 . . Recycling Unit Hacks 1 | . 1 . . . . Report Inventory 1 | . 1 . . . . Scanalyzer 4 | . . . 4 . . Insert Component 2 | . . . 2 . . Analyze 2 | . . . 2 . . Garrison Access Hacks . | . . . . . . Unauthorized Hacks 15 | . 2 . 13 . . Terminals 15 | . 2 . 13 . . Track 4 | . . . 4 . . Assimilate 3 | . 1 . 2 . . Botnet 7 | . 1 . 6 . . Operators 1 | . . . 1 . . Fabricators . | . . . . . . Repair Stations . | . . . . . . Recycling Units . | . . . . . . Scanalyzers . | . . . . . . Garrison Access . | . . . . . . Data Cores Recovered . | . . . . . . Used . | . . . . . . Hacking Detections 13 | . 3 . 10 . . Full Trace Events 1 | . . . 1 . . Feedback Events . | . . . . . . Feedback Blocked . | . . . . . . Robot Schematics Acquired . | . . . . . . Robots Built . | . . . . . . Matter . | . . . . . . Time . | . . . . . . Total Robot Build Rating . | . . . . . . Part Schematics Acquired 2 | . . . 2 . . Parts Built . | . . . . . . Matter . | . . . . . . Time . | . . . . . . Total Part Build Rating . | . . . . . . Parts Repaired 1 | . . . 1 . . Time 38 | . . . 38 . . Parts Recycled . | . . . . . . Recycled Matter . | . . . . . . Retrieved Matter . | . . . . . . Retrieved Components . | . . . . . . Parts Scanalyzed 2 | . . . 2 . . Part Schematics Acquired 2 | . . . 2 . . Parts Damaged . | . . . . . . Bothacking | -11 -10 -10 -9 -9 -9 ------------ Run | Scr Mat Min Mat Min Exi Used RIF Installer . | . . . . . . Robots Hacked . | . . . . . . Non-combat . | . . . . . . Combat . | . . . . . . Robot Hacks Applied . | . . . . . . Relay Couplers Released . | . . . . . . Robots Rewired . | . . . . . . Allies Hacked . | . . . . . . Hacks Repelled . | . . . . . . Allies | -11 -10 -10 -9 -9 -9 -------- Run | Scr Mat Min Mat Min Exi Total Allies 9 | . 1 3 2 3 . Largest Group 5 | . 1 3 3 5 5 Highest-Rated Group 103 | . 10 40 40 103 103 Highest-Rated Ally 31 | . 10 16 16 31 31 Total Orders 2 | . . . . . 2 STAY 2 | . . . . . 2 Ally Attacks 31 | . . . 13 13 5 Total Damage 425 | . . . 169 215 41 Kills 4 | . . . 2 2 . Allies Corrupted . | . . . . . . Allies Melted . | . . . . . . Intel | -11 -10 -10 -9 -9 -9 ------- Run | Scr Mat Min Mat Min Exi Robot Analysis Total 7 | . 3 . 4 . . Derelict Logs Recovered 4 | . . 1 . 3 . Drone Launches . | . . . . . . Drone Recoveries . | . . . . . . Exploration | -11 -10 -10 -9 -9 -9 ------------- Run | Scr Mat Min Mat Min Exi Turns Passed 2622 | 48 573 530 980 218 273 Spaces Moved 3268 | 51 559 775 1165 434 284 Core 11 | 9 . . 2 . . Treads . | . . . . . . Legs . | . . . . . . Wheels 69 | 42 27 . . . . Hover 1651 | . 532 775 344 . . Flight 1537 | . . . 819 434 284 Fastest Speed 26 | 50 56 56 26 26 26 Average Speed 44 | 74 57 56 41 26 26 Slowest Speed 200 | 80 80 56 200 26 26 Overloaded Moves . | . . . . . . Propulsion Burnouts . | . . . . . . Robots Hopped 8 | . . . 5 3 . Cave-ins Triggered . | . . . . . . Exploration Rate (%) 67 | 4 69 95 82 93 61 Regions Visited 5 Branch Regions 3 Pre-discovered Areas . | . . . . . . Known Exits Taken 4 | . 1 1 1 1 . Unknown Exits Taken 1 | 1 . . . . . Scrap Searched 3 | . . 2 . 1 . Spaces Dug . | . . . . . . Terrain Destroyed 75 | . . . 65 . 10 Melee . | . . . . . . Projectile . | . . . . . . AOE 75 | . . . 65 . 10 Actions | -11 -10 -10 -9 -9 -9 --------- Run | Scr Mat Min Mat Min Exi Total 4017 | 58 701 846 1501 511 400 Wait 394 | 1 52 50 165 62 64 Move 3247 | 50 558 774 1154 427 284 Hop 8 | . . . 5 3 . Pick Up 22 | 2 3 2 9 1 5 Fast Attach 27 | 5 5 . 17 . . Attach 2 | . . 1 1 . . Detach 1 | . 1 . . . . Swap 14 | . 1 2 8 . 3 Drop 35 | . 6 2 21 1 5 Fire 193 | . 60 13 70 11 39 Melee . | . . . . . . Ram . | . . . . . . Kick . | . . . . . . Crush . | . . . . . . Escape Stasis . | . . . . . . Rewire . | . . . . . . Trap . | . . . . . . Miscellaneous 74 | . 15 2 51 6 . Route ------- -11/Scrapyard -10/Materials -10/Mines (discovered 2 exits: *Mat x2) -9/Materials (discovered 3 exits: *Mat x2 / *Min) -9/Mines (discovered 3 exits: *Mat x2 / *Exi) -9/Exiles History --------- Turn | Location | Event 2 | -11/Scrapyard | Met Revision 17 4 | -11/Scrapyard | Upgraded with Propulsion slot (x1) 4 | -11/Scrapyard | Upgraded with Utility slot (x1) 4 | -11/Scrapyard | Upgraded with Weapon slot (x1) 14 | -11/Scrapyard | Discovered new exit (range 17) 49 | -11/Scrapyard | Entered Materials 595 | -10/Materials | Discovered new exit (range 8) 604 | -10/Materials | Build established: Scavenger-Mutant 617 | -10/Materials | Identified exit to Mines 622 | -10/Materials | Entered Mines 622 | -10/Mines | Accompanied by 1 ally 623 | -10/Mines | Assembled infested the area 624 | -10/Mines | Reached level 2 624 | -10/Mines | Upgraded with Utility slot (x1) 638 | -10/Mines | Found a damaged Exp. Sensor Array with a note attached 639 | -10/Mines | Found Prototype Device 645 | -10/Mines | Identified Exp. Sensor Array 755 | -10/Mines | Discovered new exit (range 7) 758 | -10/Mines | Identified exit to Materials 873 | -10/Mines | Discovered exit to Materials (range 17) 940 | -10/Mines | A weapon hastily lodged in a ceiling crevice suddenly fell to the ground 986 | -10/Mines | Assisted by bots powering up and referring to "LRC-V3" 1098 | -10/Mines | Learned location of 1 exit from Materials 1152 | -10/Mines | Entered Materials 1152 | -9/Materials | Accompanied by 3 allies 1153 | -9/Materials | Identified exit to Mines 1154 | -9/Materials | Reached level 3 1179 | -9/Materials | Reached level 4 1190 | -9/Materials | Upgraded with Power slot (x1) 1190 | -9/Materials | Upgraded with Propulsion slot (x1) 1190 | -9/Materials | Upgraded with Utility slot (x1) 1190 | -9/Materials | Upgraded with Weapon slot (x1) 1485 | -9/Materials | Reached level 5 1500 | -9/Materials | Upgraded with Propulsion slot (x1) 1553 | -9/Materials | Discovered new exit (range 5) 1554 | -9/Materials | Identified exit to Materials 1585 | -9/Materials | Build established: Scavenger-Gunner 1624 | -9/Materials | Central database locked down 1780 | -9/Materials | Repaired Hrd. Medium Armor Plating 1828 | -9/Materials | Reached level 6 1843 | -9/Materials | Upgraded with Utility slot (x1) 1940 | -9/Materials | Build established: Sprinter 2041 | -9/Materials | Discovered exit to Materials (range 17) 2095 | -9/Materials | Reached level 7 2132 | -9/Materials | Entered Mines 2132 | -9/Mines | Accompanied by 2 allies 2164 | -9/Mines | Discovered exit to Materials (range 15) 2177 | -9/Mines | Met a Derelict bent on vengeance 2197 | -9/Mines | Learned location of 1 exit from Materials 2233 | -9/Mines | Discovered exit to Materials (range 5) 2237 | -9/Mines | Received a Mining Laser from a helpful Derelict 2261 | -9/Mines | Learned Materials emergency access door positions 2272 | -9/Mines | Reached level 8 2300 | -9/Mines | Deemed a non-threat by the Exiles lab entrance 2300 | -9/Mines | Discovered new exit (range 5) 2301 | -9/Mines | Identified exit to Exiles 2350 | -9/Mines | Entered Exiles 2350 | -9/Exiles | Accompanied by 5 allies 2373 | -9/Exiles | Met 8R-AWN 2380 | -9/Exiles | Led the pair of lost Derelicts to a safe place 2405 | -9/Exiles | Met EX-HEX 2417 | -9/Exiles | Met EX-BIN 2420 | -9/Exiles | Aligned with FarCom system 2420 | -9/Exiles | Given EX-Vault access code 2428 | -9/Exiles | Opened EX-Vault 2454 | -9/Exiles | Warned to stay clear of 0b10 Research branches 2477 | -9/Exiles | Attacked by the Exiles 2585 | -9/Exiles | Destroyed 8R-AWN 2600 | -9/Exiles | Core integrity fell below 50% 2616 | -9/Exiles | Core integrity fell below 20% 2623 | -9/Exiles | Destroyed by EX-DEC with AWS/EX-DEC Last Messages --------------- 02551_ HV Slug penetrates Wall. 02555_ Penetrated by HV Slug. 02564_ HV Slug penetrates Earth. 02568_ Penetrated by HV Slug. 02572_ HV Slug penetrates Wall. 02581_ Penetrated by HV Slug. 02581_ Critical hit. 02582_ Destroyed Prototype Protection. 02584_ Penetrated by HV Slug. 02584_ Critical hit. 02584_ Penetrated by HV Slug. 02584_ HV Slug penetrates Assembled Analyzer. 02585_ 8R-AWN destroyed. 02598_ Acquired 28 matter. 02603_ EX-BIN: "I just want to science!" 02605_ Machine disabled. 02615_ Destroyed EX Chip 2. 02616_ Critical hit. 02618_ Destroyed EX Chip 2. 02621_ Machine disabled. Map ----- +----------------------------------------------------+ | ????????????????"""" ""## ## " " | | ???????????????#"" ""#### ######""" | | ???????????????#" """"##??# #????###" | | ???????????????#""" """#???# #??????## | | ????????????????# ""##???! ???????? | | ????????????????#"" """##???#" ???????? | | ????????????????##""" ##????#" ??????? | | ??????????????????#"""" ##?????#!!""!??????? | | ??????????????????### #??????#######?????? | | ????????????????????##### ##??????????????????? | | ????????????????????????## z #???????????????????? | | ?????????????????????????# #???????????????????? | | ?????????????????????????# #???????????????????? | | ?????????????????????????# #???????????????????? | | ?????????????????????????# #???????????????????? | | ?????????????????????????# #???????????????????? | | ?????????????????????????#z #???????????????????? | | ?????????????????????????# #???????????????????? | | ???????????????"? ???????# #???????????????????? | | ???????????????"" ??????# #???????????????????? | | ??????????????###"""###### ########????????????? | | ?????????????"""" """" " """"""#????????????? | | ??????????"""""" "#""??????????? | | ????????? c " ?????????? | | ????????? " "?????????? | | ????????? c @c " "?????????? | | ????????? "" #""??????????? | | ?????????? """"" " """" """""#????????????? | | ?????????????"###"""########"""######????????????? | | ???????????????"" ???????? ""????????????????? | | ????????????????"??????????? """#???????????????? | | ????????????????????????????"""""#???????????????? | | ???????????????????????????? """"????????????????? | | ?????????????????????????????????????????????????? | | ?????????????????????????????????????????????????? | | ?????????????????????????????????????????????????? | | ?????????????????????????????????????????????????? | | ?????????????????????????????????????????????????? | | ?????????????????????????????????????????????????? | | | | | | | | | | | | | | | | | | | | | | | +----------------------------------------------------+ Best States ------------- Heat Dissipation 51 Energy Generation 23 Energy Capacity 340 Matter Stores 430 Matter Capacity 450 Sight Range 17 Robot Scan Range 36 Terrain Scan Density 10 ECM Strength 1 Armor Coverage 225 Resistance: KI 5 Evasion (%) 64 Targeting Accuracy 8 Offensive Hacking 15 Defensive Hacking 5 Item Schematics ----------------- Hrd. Medium Armor Plating | -9/Materials | Scanalyzed Imp. Flight Unit | -9/Materials | Scanalyzed Robot Schematics ------------------ None Fabricated ------------ Nothing Alien Tech Used ----------------- None Achievements -------------- None Challenges ------------ None RPGLIKE | -11 -10 -10 -9 -9 -9 --------- Run | Scr Mat Min Mat Min Exi Levels Raised 7 | . . 1 5 1 . XP Earned 13914 | 3000 1480 1355 6360 1476 243 XP Spent 11790 | 2970 . 1025 7050 . 745 Upgrades 29 | 11 . 4 8 . 6 Power Slot 1 | . . . 1 . . Propulsion Slot 3 | 1 . . 2 . . Utility Slot 4 | 1 . 1 2 . . Weapon Slot 2 | 1 . . 1 . . Core Integrity 3 | . . . . . 3 Heat Dissipation 3 | 2 . . . . 1 Mass Support 2 | 1 . . 1 . . Inventory Capacity 3 | 2 . . 1 . . Sight Range 1 | 1 . . . . . Sensor Range 3 | . . 3 . . . Ranged Accuracy 1 | . . . . . 1 Hack Attack % 1 | 1 . . . . . Hack Defense % 1 | 1 . . . . . KI Resistance % 1 | . . . . . 1 Protomatter Created 541 | . 91 15 325 98 12 Integrity Restored 1374 | . 264 45 986 79 . Core 1120 | . 220 45 797 58 . Parts 254 | . 44 . 189 21 . Protomatter Decayed 111 | . . . 39 72 . Game ------ Seed SuspensionSmallMaul Manual? 0 Play Time 01:16:40 Cumulative 98.6 hours Start 2020.07.21 @ 22:06:35 End 2020.07.22 @ 14:10:26 Sessions 7 Manual Loads 0 Difficulty Rogue Special Mode Winter2019/RPGLIKE Game No. 47 Rogue 47 Adventurer 0 Explorer 0 Win Type - Total 1 Types 0/0/0/1/0/0/0 Lore% 66 Gallery% 57 Achievement% 57 Wizard Run 0 Options --------- ASCII 0 Keyboard 0 Movement Numpad Keybinds 0 Fullscreen 1 Font 14/SmallcapsGlow Map View 84x54 Tactical HUD 1 Map Filters NONE Filters NONE Steam 1 RUN: e54c865c-ad80-4089-9d3d-e11a23acbfb3